bitfinex/quotes_SOLUSD_20250108
["timestamp","ask_amount","ask_price","bid_price","bid_amount"]
[1736336282550,0.09278867,195.02,195.01,0.65405477]
[1736336282741,0.09278867,195.02,194.97,0.65397921]
[1736336283064,0.09278867,195.02,194.99,0.65440872]
[1736336283234,0.09278867,195.02,194.97,0.65432353]
[1736336283431,0.09278867,195.02,194.96,0.65463065]
[1736336283656,0.09278867,195.02,194.95,0.65464295]
[1736336284452,0.09278867,195.02,194.99,41.10765465]
[1736336284634,0.09278867,195.02,195.0,0.65412509]
[1736336285454,0.09278867,195.02,195.01,41.10765465]
[1736336286040,0.09278867,195.02,195.0,41.76177974]
[1736336286440,0.09278867,195.02,195.0,0.65412509]
[1736336286655,0.09278867,195.02,194.98,41.7619742]
[1736336286837,0.09278867,195.02,194.98,0.65431955]
[1736336287039,0.09278867,195.02,194.94,41.10765465]
[1736336287260,0.09278867,195.02,194.95,0.65463005]
[1736336287865,0.09278867,195.02,194.96,41.10765465]
[1736336288041,0.09278867,195.02,194.97,41.76202244]
[1736336288840,0.09278867,195.02,194.97,0.65436779]
[1736336289140,0.09278867,195.02,194.98,0.65441077]
[1736336289537,0.09278867,195.02,194.96,0.6544268]
[1736336289752,0.09278867,195.02,194.94,0.65473252]
[1736336289968,0.09278867,195.02,194.91,0.65501346]
[1736336290142,20.0,194.99,194.91,0.65501346]
[1736336290339,20.0,194.99,194.89,2.31572362]
[1736336291248,20.0,194.99,194.89,43.42337827]
[1736336292383,20.09278867,195.02,194.91,41.10765465]
[1736336292669,20.09278867,195.02,194.92,0.6549531]
[1736336293756,20.09278867,195.02,194.93,41.10765465]
[1736336293958,20.09278867,195.02,194.94,0.654719]
[1736336294268,0.09278867,195.02,194.94,0.654719]
[1736336294640,20.09278867,195.02,194.94,0.654719]
[1736336295363,0.09278867,195.02,194.94,0.654719]
[1736336295972,0.09278867,195.02,194.94,41.76237365]
[1736336296360,0.09278867,195.02,194.98,41.10765465]
[1736336296561,0.09278867,195.02,194.99,41.7618976]
[1736336297169,0.09278867,195.02,194.99,0.65424295]
[1736336297668,20.96122167,195.09,194.96,0.65451855]
[1736336298071,20.0,195.05,194.93,41.10765465]
[1736336298261,20.0,195.01,194.91,0.65477556]
[1736336299382,4.06145044,195.04,194.91,25.95329466]
[1736336299847,23.776884,195.03,194.91,25.95329466]
[1736336300052,0.96161384,195.02,194.91,25.95329466]
[1736336300364,20.0,195.07,194.92,25.2985191]
[1736336300548,3.1,195.01,194.93,0.65488209]
[1736336300750,3.1,195.08,194.96,25.2985191]
[1736336300967,3.1,195.09,194.99,25.2985191]
[1736336301171,2.2707,195.1,195.01,25.2985191]
[1736336301387,20.0,195.09,195.02,0.65399375]
[1736336301751,3.1,195.12,195.02,25.95251285]
[1736336302070,23.776884,195.11,195.02,0.65399375]
[1736336302264,20.0,195.08,194.99,0.65393347]
[1736336302450,20.0,195.08,195.0,25.2985191]
[1736336302649,3.1,195.12,195.01,25.95258635]
[1736336302871,3.4911,195.13,195.03,25.2985191]
[1736336303068,4.45206239,195.13,195.01,25.2985191]
[1736336303268,4.45206239,195.13,195.02,25.95234456]
[1736336303269,3.4911,195.13,195.02,25.95234456]
[1736336303469,20.0,195.13,195.04,25.2985191]
[1736336303667,20.0,195.13,195.02,25.2985191]
[1736336303866,20.0,195.13,195.03,25.95241397]
[1736336304358,20.0,195.12,195.04,25.2985191]
[1736336304559,20.0,195.12,195.0,1.5294]
[1736336304560,20.0,195.12,195.01,25.2985191]
[1736336305071,20.0,195.08,194.98,0.65401855]
[1736336305270,20.0,195.08,194.97,0.65446658]
[1736336305858,20.0,195.08,194.97,25.95298568]
[1736336306048,3.1,195.07,194.98,25.2985191]
[1736336306248,3.1,195.06,194.99,0.65428092]
[1736336306464,3.1,195.07,195.02,25.2985191]
[1736336306660,3.1,195.09,195.03,0.65388796]
[1736336307376,3.1,195.09,195.02,0.65394139]
[1736336307773,3.1,195.09,194.99,25.2985191]
[1736336307968,3.1,195.09,194.96,25.95247874]
[1736336308170,0.96121915,195.08,194.96,0.65395964]
[1736336308561,23.1,195.09,194.96,0.65395964]
[1736336308761,3.1,195.09,194.97,25.2985191]
[1736336309075,4.06126389,195.09,194.98,0.65440246]
[1736336309271,3.1,195.09,194.99,25.2985191]
[1736336309582,3.1,195.12,195.0,25.95274481]
[1736336310076,23.1,195.12,195.0,0.65422571]
[1736336310376,23.1,195.12,195.01,25.2985191]
[1736336310556,23.1,195.12,195.02,0.65400752]
[1736336311176,20.0,195.07,194.94,0.65400561]
[1736336311460,20.0,195.02,194.93,0.65466623]
[1736336311660,20.0,195.02,194.91,0.65466623]
[1736336311987,20.0,195.0,194.91,0.65466623]
[1736336312162,20.0,195.0,194.89,25.95363177]
[1736336313085,17.43617,195.0,194.91,25.2985191]
[1736336313269,17.43617,195.0,194.89,25.95363177]
[1736336313890,17.43617,195.0,194.89,0.65511267]
[1736336314491,2.2707,195.03,194.89,25.95363177]
[1736336314795,3.08,194.99,194.89,25.95363177]
[1736336314997,3.08,194.99,194.89,0.65511267]
[1736336315184,3.08,194.99,194.88,2.30988921]
[1736336315990,20.0,194.95,194.85,0.65528255]
[1736336316195,20.0,194.93,194.81,0.65574866]
[1736336316404,0.96208352,194.92,194.81,0.65574866]
[1736336316577,23.06,194.91,194.81,0.65574866]
[1736336317779,24.73901037,194.9,194.78,0.65612742]
[1736336317986,20.0,194.87,194.76,0.6563464]
[1736336318192,0.96239555,194.86,194.74,0.65666577]
[1736336318400,20.0,194.84,194.73,0.65670676]
[1736336318574,3.06,194.83,194.73,0.65670676]
[1736336318775,3.06,194.83,194.72,25.95531214]
[1736336319272,3.06,194.83,194.72,0.65679304]
[1736336319700,3.06,194.83,194.71,25.2985191]
[1736336319899,3.06,194.83,194.72,25.95546984]
[1736336320573,0.9625208,194.86,194.72,0.65695074]
[1736336320774,3.06,194.87,194.77,25.2985191]
[1736336321085,3.06,194.87,194.78,0.65638326]
[1736336321291,3.06,194.87,194.79,25.2985191]
[1736336321475,3.06,194.87,194.8,25.95453618]
[1736336321687,3.06,194.87,194.8,0.65601708]
[1736336321999,3.06,194.87,194.8,25.95453618]
[1736336322300,20.0,194.88,194.8,0.65601708]
[1736336322475,20.0,194.88,194.8,25.95453618]
[1736336322681,3.06,194.92,194.81,25.2985191]
[1736336322887,20.0,194.89,194.82,0.65591655]
[1736336323101,3.06,194.92,194.82,0.65591655]
[1736336323290,3.06,194.92,194.82,25.95443565]
[1736336323494,3.06,194.94,194.84,25.2985191]
[1736336323717,3.06,194.94,194.85,0.65563926]
[1736336323950,20.0,194.93,194.81,25.2985191]
[1736336324206,0.96197527,194.93,194.77,0.65582521]
[1736336324425,23.776884,194.92,194.79,25.2985191]
[1736336324633,23.776884,194.92,194.8,0.65607879]
[1736336324990,20.0,194.89,194.8,0.65607879]
[1736336326288,20.0,194.89,194.8,25.95459789]
[1736336326614,20.0,194.89,194.8,0.65607879]
[1736336326925,20.0,194.79,194.68,0.65620808]
[1736336327125,3.2,194.78,194.63,25.2985191]
[1736336327324,20.0,194.75,194.64,0.65759734]
[1736336327609,20.0,194.79,194.65,25.2985191]
[1736336327610,4.22294745,194.76,194.65,25.2985191]
[1736336327824,23.776884,194.75,194.64,25.2985191]
[1736336328002,3.26,194.76,194.66,0.65784827]
[1736336328414,3.26,194.76,194.67,25.2985191]
[1736336328613,3.26,194.76,194.68,0.65739207]
[1736336328817,3.28,194.79,194.7,25.2985191]
[1736336329101,0.96267355,194.84,194.73,25.2985191]
[1736336329322,3.28,194.85,194.75,25.2985191]
[1736336329639,0.3911,194.89,194.78,25.2985191]
[1736336329805,3.23282124,194.92,194.8,25.2985191]
[1736336330010,2.2707,194.92,194.82,25.2985191]
[1736336330254,20.0,194.91,194.83,0.65590268]
[1736336330619,0.96213674,194.9,194.75,25.2985191]
[1736336330803,0.96213674,194.9,194.76,25.9548811]
[1736336330804,20.0,194.89,194.76,25.9548811]
[1736336331014,2.2707,194.92,194.81,25.2985191]
[1736336331312,2.2707,194.92,194.82,0.65595477]
[1736336332325,3.2327464,194.97,194.85,25.2985191]
[1736336332521,2.2707,194.97,194.86,0.65557581]
[1736336332720,2.2707,194.97,194.87,25.2985191]
[1736336332918,23.23249891,194.97,194.82,33.2668191]
[1736336333121,20.0,194.93,194.83,0.65582543]
[1736336333346,4.26197136,194.92,194.77,8.1465]
[1736336333630,23.3,194.92,194.8,41.15396487]
[1736336333829,23.3,194.92,194.81,0.65600961]
[1736336334202,3.3,194.92,194.81,0.65600961]
[1736336334403,3.3,194.92,194.82,41.15396487]
[1736336334725,3.3,194.92,194.83,41.80971858]
[1736336335029,3.3,194.92,194.83,0.65575371]
[1736336335329,3.3,194.92,194.84,41.15396487]
[1736336335513,2.2707,194.97,194.85,41.80946029]
[1736336335849,20.0,194.95,194.85,0.65549542]
[1736336336021,2.2707,194.97,194.85,0.65549542]
[1736336336340,2.2707,194.97,194.79,3.32]
[1736336336341,2.2707,194.97,194.86,41.15396487]
[1736336336655,2.2707,194.97,194.87,0.65540492]
[1736336337146,2.2707,194.97,194.87,41.80936979]
[1736336337448,20.3911,194.99,194.88,41.15396487]
[1736336337630,20.3911,194.99,194.89,0.6552287]
[1736336338025,0.3911,194.99,194.89,0.6552287]
[1736336338429,3.34,195.01,194.89,41.80919357]
[1736336338642,20.0,194.99,194.89,41.80919357]
[1736336338963,3.34,195.01,194.89,0.6552287]
[1736336339230,2.2707,195.02,194.9,41.15396487]
[1736336339412,2.2707,195.02,194.94,41.15396487]
[1736336339613,0.3911,195.04,194.95,0.65473574]
[1736336340213,20.0,195.0,194.89,41.80863299]
[1736336340644,20.0,195.0,194.91,41.15396487]
[1736336340823,0.3911,195.04,194.92,0.65490741]
[1736336341119,20.0,194.98,194.89,0.65490741]
[1736336341355,20.0,195.01,194.89,0.65490741]
[1736336341640,20.96171832,195.01,194.89,0.65490741]
[1736336342060,20.96171832,195.01,194.88,0.65522755]
[1736336342351,20.0,194.97,194.86,41.15396487]
[1736336342509,0.96178913,194.99,194.87,0.65525786]
[1736336342743,20.0,194.95,194.84,41.80947656]
[1736336342938,20.0,194.93,194.81,41.15396487]
[1736336343139,20.0,194.93,194.82,41.80985689]
[1736336343342,3.23268532,194.96,194.83,41.15396487]
[1736336343578,2.2707,194.96,194.85,41.15396487]
[1736336343869,2.2707,194.96,194.84,0.65569916]
[1736336343870,24.73879624,194.95,194.84,0.65569916]
[1736336344075,0.96191224,194.95,194.83,0.65595848]
[1736336344263,20.0,194.92,194.82,0.6558764]
[1736336344457,20.0,194.92,194.83,41.15396487]
[1736336344847,20.0,194.95,194.85,41.15396487]
[1736336345252,3.34,194.98,194.87,41.15396487]
[1736336345452,3.34,194.98,194.88,41.80926795]
[1736336345874,23.34,194.98,194.88,41.80926795]
[1736336346163,3.34,194.98,194.88,41.80926795]
[1736336346366,3.34,194.98,194.89,41.15396487]
[1736336346573,3.34,194.98,194.87,41.15396487]
[1736336346779,3.34,194.98,194.88,0.6552957]
[1736336347073,3.34,194.98,194.89,41.15396487]
[1736336347274,3.34,194.98,194.9,0.65523418]
[1736336347471,2.2707,195.01,194.93,41.15396487]
[1736336347673,3.32,195.02,194.91,41.15396487]
[1736336347858,20.96156071,195.01,194.89,0.6549961]
[1736336348056,20.0,194.96,194.88,0.65535758]
[1736336348280,20.0,194.96,194.85,0.6554177]
[1736336348588,20.96177151,194.96,194.85,0.6554177]
[1736336348763,20.0,194.96,194.85,41.80938257]
[1736336348965,20.0,194.96,194.87,41.15396487]
[1736336349166,20.0,194.96,194.86,41.15396487]
[1736336349379,20.0,194.96,194.87,41.80954998]
[1736336349868,0.3911,195.04,194.9,41.15396487]
[1736336350070,3.32,195.03,194.91,41.80900097]
[1736336350283,0.96159458,195.02,194.91,41.80900097]
[1736336350467,0.96150228,195.05,194.94,41.15396487]
[1736336350667,4.5414,195.11,194.97,41.15396487]
[1736336350979,2.2707,195.11,194.98,0.65437406]
[1736336351168,3.23194104,195.11,194.98,41.80833893]
[1736336351490,2.2707,195.11,195.0,41.15396487]
[1736336351672,2.2707,195.11,195.01,0.65410469]
[1736336352768,0.3911,195.12,195.02,41.15396487]
[1736336353075,0.3911,195.12,195.03,0.65399279]
[1736336353693,20.96111588,195.14,195.03,0.65399279]
[1736336353861,2.2707,195.15,195.04,41.15396487]
[1736336354074,2.2707,195.15,195.05,0.65370981]
[1736336354371,2.2707,195.15,195.06,41.15396487]
[1736336354576,0.3911,195.17,195.04,41.15396487]
[1736336354795,20.0,195.16,195.01,41.15396487]
[1736336355000,0.96103024,195.15,195.02,0.65393516]
[1736336355185,20.0,195.11,195.02,41.80790003]
[1736336355383,0.3911,195.17,195.03,25.26726743]
[1736336355699,20.0,195.13,195.04,0.6538713]
[1736336355874,0.3911,195.17,195.04,25.92113873]
[1736336356081,21.35203447,195.17,195.04,25.92113873]
[1736336356375,1.35203447,195.17,195.04,0.6538713]
[1736336356571,20.0,195.13,195.0,25.26726743]
[1736336356771,20.0,195.13,195.01,0.65397758]
[1736336357079,3.28,195.18,195.05,25.26726743]
[1736336357292,20.96090169,195.17,195.05,0.65367805]
[1736336357493,20.96090169,195.17,195.05,25.92094548]
[1736336357902,20.96090169,195.17,195.05,0.65367805]
[1736336358195,20.0,195.13,195.04,1.5566]
[1736336358404,20.0,195.13,195.0,25.26726743]
[1736336358604,20.0,195.13,195.01,25.9212215]
[1736336358774,20.0,195.13,195.01,25.26726743]
[1736336359192,14.73273257,195.0,194.99,1.5364]
[1736336359405,14.73273257,195.0,194.99,50.58055143]
[1736336359580,14.73273257,195.0,194.99,51.23427103]
[1736336360704,14.73273257,195.0,194.99,27.45738703]
[1736336360893,14.73273257,195.0,194.99,1.5364]
[1736336361091,14.73273257,195.0,194.99,27.45783151]
[1736336362121,14.73273257,195.0,194.97,25.26726743]
[1736336362425,14.73273257,195.0,194.91,25.92190831]
[1736336362720,14.73273257,195.0,194.9,6.6424]
[1736336362893,14.73273257,195.0,194.89,0.65518321]
[1736336363098,20.0,194.97,194.89,0.65518321]
[1736336363315,20.0,194.97,194.86,6.085]
[1736336363500,20.0,194.97,194.86,0.65554604]
[1736336363702,0.96183568,194.96,194.85,25.92296862]
[1736336363910,20.0,194.97,194.85,0.65570119]
[1736336364207,0.961871,194.96,194.85,0.65570119]
[1736336364411,20.0,194.97,194.87,25.26726743]
[1736336364585,3.28,194.98,194.88,0.65531304]
[1736336364793,20.0,194.96,194.88,0.65531304]
[1736336365312,14.73273257,195.0,194.91,25.26726743]
[1736336365527,14.73273257,195.0,194.93,25.26726743]
[1736336365714,14.73273257,195.0,194.93,0.65477109]
[1736336366587,14.73273257,195.0,194.93,25.92203852]
[1736336366782,14.73273257,195.0,194.94,0.65478652]
[1736336367086,14.73273257,195.0,194.92,25.26726743]
[1736336367294,14.73273257,195.0,194.93,0.6548182]
[1736336367733,14.73273257,195.0,194.94,25.26726743]
[1736336367888,14.73273257,195.0,194.95,0.65464767]
[1736336368088,14.73273257,195.0,194.96,0.65463915]
[1736336368686,14.73273257,195.0,194.97,0.65463551]
[1736336369317,14.73273257,195.0,194.96,0.65448242]
[1736336369486,14.73273257,195.0,194.98,0.65448242]
[1736336370323,14.73273257,195.0,194.98,25.92174985]
[1736336370691,14.73273257,195.0,194.99,25.26726743]
[1736336370916,14.73273257,195.0,194.99,25.92136962]
[1736336371296,14.73273257,195.0,194.99,0.65410219]
[1736336371905,14.73273257,195.0,194.98,0.65429525]
[1736336372102,14.73273257,195.0,194.98,25.92156268]
[1736336372499,14.73273257,195.0,194.99,25.26726743]
[1736336372899,14.73273257,195.0,194.99,25.92135354]
[1736336374117,14.73273257,195.0,194.99,25.26726743]
[1736336374322,14.73273257,195.0,194.99,49.04415143]
[1736336374696,14.73273257,195.0,194.99,49.69789097]
[1736336374903,14.73273257,195.0,194.99,25.92100697]
[1736336375595,14.73273257,195.0,194.99,49.69789097]
[1736336376219,14.73273257,195.0,194.99,25.92100697]
[1736336376423,14.73273257,195.0,194.97,25.26726743]
[1736336376624,14.73273257,195.0,194.99,25.26726743]
[1736336377301,14.73273257,195.0,194.99,49.04415143]
[1736336377502,14.73273257,195.0,194.99,74.31141886]
[1736336377901,14.73273257,195.0,194.99,80.73501886]
[1736336378509,4.73293257,195.0,194.99,85.73501886]
[1736336378823,0.3911,195.16,195.01,5.0]
[1736336379024,0.3911,195.16,195.07,25.26726743]
[1736336379210,20.0,195.15,195.05,25.26726743]
[1736336379406,0.3911,195.16,195.06,0.65351316]
[1736336379617,20.0,195.14,195.02,25.26726743]
[1736336379816,20.0,195.1,195.0,0.65380925]
[1736336380001,3.22,195.09,194.99,0.6542115]
[1736336380537,3.22,195.09,194.99,25.92147893]
[1736336380699,3.22,195.09,195.0,25.26726743]
[1736336380899,3.22,195.09,195.01,0.65394886]
[1736336381126,3.22,195.11,195.01,25.92121629]
[1736336381825,20.0,195.12,195.01,25.92121629]
[1736336382002,3.2,195.11,195.01,25.92121629]
[1736336382422,3.2,195.11,195.01,0.65394886]
[1736336383422,3.2,195.11,195.01,25.92121629]
[1736336383620,3.2,195.11,195.02,25.26726743]
[1736336383805,3.2,195.11,195.03,0.65384879]
[1736336385401,3.5711,195.16,195.05,25.26726743]
[1736336385602,3.5711,195.16,195.06,0.65351109]
[1736336386114,3.5711,195.16,195.06,25.92077852]
[1736336386313,3.5711,195.16,195.06,0.65351109]
[1736336386515,3.18,195.2,195.08,25.26726743]
[1736336386717,3.18,195.2,195.09,0.65323613]
[1736336386911,20.0,195.17,195.09,0.65323613]
[1736336387126,4.6868,195.21,195.09,0.65323613]
[1736336387336,0.96070559,195.2,195.09,0.65323613]
[1736336387622,2.46744877,195.21,195.09,0.65323613]
[1736336387807,1.5068,195.21,195.1,25.26726743]
[1736336388014,2.46744733,195.21,195.09,0.65316933]
[1736336388528,20.0,195.2,195.09,0.65316933]
[1736336389960,23.776884,195.18,195.05,6.5902]
[1736336390119,0.96088833,195.17,195.05,7.24385133]
[1736336390425,0.96088833,195.17,195.05,0.65365133]
[1736336390426,23.776884,195.16,195.05,0.65365133]
[1736336390608,3.14,195.15,195.05,0.65365133]
[1736336390809,20.0,195.13,195.05,0.65365133]
[1736336391019,20.0,195.13,195.04,0.65375684]
[1736336391430,4.10095463,195.15,195.04,0.65375684]
[1736336391640,20.0,195.13,195.04,0.65375684]
[1736336392023,20.0,195.13,195.05,0.65376107]
[1736336393035,20.0,195.13,195.04,0.65372548]
[1736336393224,3.14,195.15,195.04,0.65372548]
[1736336393844,3.14,195.15,195.04,25.92099291]
[1736336394046,3.14,195.15,195.04,0.65372548]
[1736336394417,3.14,195.15,195.03,0.65380109]
[1736336394718,3.14,195.15,195.05,0.65380109]
[1736336395039,0.96094349,195.14,195.01,0.65376165]
[1736336395219,20.0,195.1,195.0,6.91816189]
[1736336395420,0.9611914,195.09,194.95,31.42276743]
[1736336395621,0.9611914,195.09,194.95,32.07727532]
[1736336395920,0.9611914,195.09,194.93,25.26726743]
[1736336396124,20.0,195.05,194.91,6.81004627]
[1736336396332,20.0,195.01,194.91,6.81004627]
[1736336396544,20.0,195.0,194.89,2.16531245]
[1736336396867,2.5669617,194.99,194.86,6.4104]
[1736336397153,2.5669617,194.99,194.84,1.5488]
[1736336397154,20.0,194.95,194.84,1.5488]
[1736336397335,4.06198643,194.94,194.81,7.06597124]
[1736336398036,4.06198643,194.94,194.81,32.33323867]
[1736336398224,3.1,194.94,194.81,32.33323867]
[1736336398419,4.06204348,194.96,194.82,25.26726743]
[1736336398746,3.1,194.96,194.84,25.26726743]
[1736336398916,23.1,194.96,194.85,25.92277816]
[1736336399116,23.1,194.96,194.86,25.26726743]
[1736336399315,1.6053,194.99,194.88,25.26726743]
[1736336399623,4.06160964,195.02,194.89,25.92236139]
[1736336399840,20.0,195.0,194.89,0.65509396]
[1736336400143,20.0,195.0,194.89,0.65509345]
[1736336400623,9.6367,195.03,194.91,25.26726743]
[1736336400818,9.6367,195.03,194.92,0.65497243]
[1736336402349,3.08,195.03,194.92,25.92223986]
[1736336402549,3.08,195.03,194.93,25.26726743]
[1736336402767,0.96144836,195.07,194.94,25.92193196]
[1736336402935,20.0,195.05,194.95,25.26726743]
[1736336403245,3.08,195.06,194.96,25.92181581]
[1736336403438,3.06,195.08,194.99,25.26726743]
[1736336403621,3.06,195.08,195.0,25.92139029]
[1736336404148,3.06,195.08,195.0,0.65412286]
[1736336404329,3.06,195.08,194.99,0.65433714]
[1736336404743,3.06,195.08,194.99,25.92160457]
[1736336404946,3.06,195.08,195.0,25.26726743]
[1736336405146,3.06,195.08,195.01,7.24063257]
[1736336405527,2.51484027,195.13,195.01,7.24063257]
[1736336405738,20.0,195.11,195.01,7.24063257]
[1736336406336,0.96108448,195.11,194.99,1.6091]
[1736336406535,20.0,195.09,194.98,0.65430675]
[1736336406840,20.96127333,195.09,194.97,7.12562132]
[1736336407037,20.0,195.05,194.97,6.4712]
[1736336407238,3.06,195.04,194.93,7.8041]
[1736336408451,3.06,195.04,194.94,0.65490408]
[1736336409356,0.96143102,195.1,194.94,25.92217151]
[1736336409542,3.04,195.09,194.95,25.26726743]
[1736336409741,20.0,195.05,194.96,0.65450794]
[1736336410358,6.0161,195.14,194.97,25.26726743]
[1736336410664,4.00121196,195.12,194.99,25.26726743]
[1736336410865,4.00121196,195.12,194.99,0.6541287]
[1736336411040,23.776884,195.08,194.98,0.6541287]
[1736336411240,24.73823131,195.08,194.96,0.6545693]
[1736336411939,24.73823131,195.08,194.93,7.8041]
[1736336412261,24.73823131,195.08,194.93,8.45895977]
[1736336412559,24.73823131,195.08,194.94,25.26726743]
[1736336412776,24.73823131,195.08,194.95,0.65457059]
[1736336413060,3.04,195.12,194.97,25.26726743]
[1736336413256,0.96122188,195.11,194.98,0.65431844]
[1736336413434,20.0,195.1,194.98,0.65431844]
[1736336413635,20.0,195.1,194.98,25.92158587]
[1736336414244,20.0,195.08,194.98,25.92158587]
[1736336414449,0.96117697,195.07,194.85,6.4543]
[1736336414651,23.776884,195.06,194.9,25.26726743]
[1736336414953,20.0,195.03,194.91,0.55731063]
[1736336415263,3.02,195.02,194.91,25.82457806]
[1736336415582,0.96143481,195.11,194.94,25.26726743]
[1736336415738,0.96143481,195.11,194.97,25.26726743]
[1736336415937,3.02,195.1,194.98,25.8239605]
[1736336416138,3.02,195.1,194.98,0.55669307]
[1736336416363,2.51501304,195.13,195.0,25.26726743]
[1736336416561,3.02,195.12,195.01,0.55653004]
[1736336416742,2.51501304,195.13,195.01,0.55653004]
[1736336416743,20.0,195.1,195.01,0.55653004]
[1736336416945,20.96115153,195.1,194.99,0.55657773]
[1736336417262,3.98119521,195.11,194.99,0.55657773]
[1736336417455,20.0,195.09,194.99,0.55657773]
[1736336418058,3.02,195.11,195.0,25.82389324]
[1736336418250,3.02,195.11,195.01,25.26726743]
[1736336418564,3.02,195.11,195.02,0.55642421]
[1736336419167,23.02,195.11,195.02,0.55642421]
[1736336419338,20.0,195.1,194.99,25.26726743]
[1736336419543,0.96115968,195.1,194.95,25.82386146]
[1736336419863,0.96115968,195.1,194.98,25.26726743]
[1736336420060,20.0,195.1,194.99,0.55672921]
[1736336420455,3.02,195.11,195.0,25.26726743]
[1736336420646,3.02,195.11,195.01,0.55635979]
[1736336421068,23.02,195.11,195.01,0.55635979]
[1736336421367,1.6634,195.18,195.02,31.82706743]
[1736336421568,4.00091138,195.17,195.03,0.55609742]
[1736336421769,20.0,195.13,195.02,6.5598]
[1736336421951,24.73802476,195.12,195.02,6.5598]
[1736336422164,20.0,195.09,194.99,0.5565562]
[1736336422488,3.04,195.08,194.98,0.5565707]
[1736336425784,0.96130873,195.17,194.99,25.26726743]
[1736336426084,3.02,195.16,195.0,0.55637923]
[1736336426249,20.0,195.12,194.98,0.55660808]
[1736336426450,0.96126449,195.11,194.98,0.55660808]
[1736336426685,23.776884,195.1,194.98,0.55660808]
[1736336426855,0.96128554,195.09,194.97,6.63524575]
[1736336427056,20.0,195.07,194.97,6.63524575]
[1736336427379,20.0,195.05,194.97,6.0784]
[1736336427682,20.0,195.0,194.92,6.2712]
[1736336427890,20.0,194.95,194.87,6.1945]
[1736336428051,0.96196494,194.94,194.87,6.1945]
[1736336428254,0.96196494,194.94,194.82,8.30347482]
[1736336428487,20.0,194.9,194.82,7.7451]
[1736336428668,27.75912538,194.89,194.77,14.18664783]
[1736336428967,3.02,194.88,194.77,6.1945]
[1736336429186,6.5656,194.98,194.78,25.82619872]
[1736336429187,20.0,194.93,194.78,25.82619872]
[1736336429471,0.96213806,194.92,194.78,0.55893129]
[1736336429644,20.0,194.91,194.78,25.82619872]
[1736336430578,20.0,194.91,194.78,0.55893129]
[1736336431075,20.0,194.91,194.78,25.82619872]
[1736336431461,3.02,194.93,194.8,25.26726743]
[1736336431654,3.02,194.93,194.81,0.55825599]
[1736336431971,23.02,194.93,194.81,25.82552342]
[1736336432303,3.02,194.93,194.83,25.26726743]
[1736336432572,3.98173735,194.98,194.84,25.8250168]
[1736336432748,3.98173735,194.98,194.84,0.55774937]
[1736336432947,23.776884,194.97,194.84,0.55774937]
[1736336433171,20.0,194.94,194.84,0.55774937]
[1736336433379,20.0,194.94,194.83,0.5581032]
[1736336434375,20.0,194.94,194.82,0.55818952]
[1736336434575,0.96195742,194.93,194.82,0.55818952]
[1736336435166,20.96203408,194.94,194.82,0.55818952]
[1736336435377,20.0,194.94,194.83,0.5582814]
[1736336435679,3.02,194.98,194.83,25.82554883]
[1736336435975,0.96187267,194.97,194.83,0.5582814]
[1736336436156,20.0,194.94,194.83,0.5582814]
[1736336436578,20.0,194.94,194.84,0.55810555]
[1736336436579,20.0,194.93,194.84,0.55810555]
[1736336436777,20.0,194.89,194.77,6.1945]
[1736336436978,4.28229385,194.88,194.77,6.1945]
[1736336437667,4.28229385,194.88,194.72,25.26726743]
[1736336437858,20.0,194.84,194.73,0.55916738]
[1736336438270,0.96250407,194.83,194.71,6.659]
[1736336439453,3.32,194.82,194.74,25.26726743]
[1736336439652,3.3,194.85,194.76,25.26726743]
[1736336439883,3.3,194.86,194.77,25.82602087]
[1736336440062,3.3,194.86,194.77,0.55875344]
[1736336440383,3.3,194.86,194.77,25.82602087]
[1736336440577,3.3,194.86,194.77,0.55875344]
[1736336441179,3.3,194.86,194.78,0.55873217]
[1736336441957,0.96221792,194.89,194.78,24.33561617]
[1736336442184,3.32,194.88,194.79,0.55875623]
[1736336442475,3.32,194.88,194.79,25.82602366]
[1736336442877,8.2256,194.93,194.8,23.776884]
[1736336443067,3.32,194.92,194.81,0.55832355]
[1736336443457,20.0,194.9,194.81,0.55832355]